fUST/lending_fUST_20240122
["ID","MTS","AMOUNT","RATE_DAILY","PERIOD"]
[312406871,1705860640076,-500.0,0.00027397,2]
[312406872,1705860640085,-500.0,0.00027397,2]
[312406873,1705860640095,-500.0,0.00027397,2]
[312406874,1705860640104,-1399.49,0.00027397,2]
[312406875,1705860640113,-841.32,0.00027397,2]
[312406876,1705860640124,-500.0,0.00027397,2]
[312406877,1705860640133,-610.97,0.00027397,2]
[312406879,1705860640142,-500.0,0.00027397,2]
[312406880,1705860640151,-464.02860065,0.00027397,2]
[312406881,1705860640160,-500.0,0.00027397,2]
[312406882,1705860640169,-669.78,0.00027397,2]
[312406883,1705860640178,-270.22224209,0.00027397,2]
[312406884,1705860640187,-500.0,0.00027397,2]
[312406886,1705860640197,-668.56,0.00027397,2]
[312406887,1705860640206,-500.0,0.00027397,2]
[312406888,1705860640215,-500.0,0.00027397,2]
[312406889,1705860640224,-2160.56,0.00027397,2]
[312406890,1705860640233,-1602.03,0.00027397,2]
[312406891,1705860640242,-676.46,0.00027397,2]
[312406892,1705860640251,-1237.17,0.00027397,2]
[312406893,1705860640260,-500.0,0.00027397,2]
[312406894,1705860640269,-500.0,0.00027397,2]
[312406895,1705860640278,-666.13,0.00027397,2]
[312406896,1705860640287,-500.0,0.00027397,2]
[312406897,1705860640296,-500.0,0.00027397,2]
[312406898,1705860640305,-500.0,0.00027397,2]
[312406899,1705860640314,-500.0,0.00027397,2]
[312406900,1705860640323,-500.0,0.00027397,2]
[312406901,1705860640332,-500.0,0.00027397,2]
[312406902,1705860640341,-500.0,0.00027397,2]
[312406903,1705860640350,-4538.08,0.00027397,2]
[312406904,1705860640359,-500.0,0.00027397,2]
[312406905,1705860640368,-500.0,0.00027397,2]
[312406906,1705860640377,-741.24,0.00027397,2]
[312406907,1705860640386,-1000.0,0.00027397,2]
[312406908,1705860640395,-500.0,0.00027397,2]
[312406909,1705860640404,-529.48,0.00027397,2]
[312406910,1705860640413,-20705.99,0.00027397,2]
[312406911,1705860640422,-747.07,0.00027397,2]
[312406912,1705860640431,-1631.74,0.00027397,2]
[312406913,1705860640440,-500.0,0.00027397,2]
[312406914,1705860640448,-500.0,0.00027397,2]
[312406915,1705860640457,-500.0,0.00027397,2]
[312406916,1705860640466,-13009.93,0.00027397,2]
[312406917,1705860640475,-500.0,0.00027397,2]
[312406918,1705860640484,-500.0,0.00027397,2]
[312406919,1705860640493,-192.19323195,0.00027397,2]
[312406920,1705860640502,-500.0,0.00027397,2]
[312406921,1705860640511,-966.97,0.00027397,2]
[312406922,1705860640520,-500.0,0.00027397,2]
[312406923,1705860640529,-500.0,0.00027397,2]
[312406924,1705860640538,-513.4,0.00027397,2]
[312406925,1705860640547,-6533.57,0.00027397,2]
[312406926,1705860640556,-851.0,0.00027397,2]
[312406927,1705860640566,-861.55,0.00027397,2]
[312406928,1705860640575,-567.46,0.00027397,2]
[312406929,1705860640584,-500.0,0.00027397,2]
[312406930,1705860640593,-500.0,0.00027397,2]
[312406931,1705860640602,-500.0,0.00027397,2]
[312406932,1705860640612,-1122.67,0.00027397,2]
[312406933,1705860640621,-303.51719072,0.00027397,2]
[312406934,1705860640630,-163.8931268,0.00027397,2]
[312406935,1705860640639,-234.44431672,0.00027397,2]
[312406936,1705860640648,-558.29816808,0.00027397,2]
[312406937,1705860640658,-200.80876799,0.00027397,2]
[312406938,1705860640667,-1290.31,0.00027397,2]
[312406939,1705860640676,-4866.33,0.00027397,2]
[312406940,1705860640686,-1495.47,0.00027397,2]
[312406941,1705860640696,-1292.33,0.00027397,2]
[312406942,1705860640705,-239.29179191,0.00027397,2]
[312406943,1705860640715,-6305.39,0.00027397,2]
[312406944,1705860640725,-500.0,0.00027397,2]
[312406945,1705860640735,-200.0,0.00027397,2]
[312406946,1705860640745,-1149.94,0.00027397,2]
[312406947,1705860640755,-7237.51,0.00027397,2]
[312406948,1705860640765,-500.0,0.00027397,2]
[312406949,1705860640774,-500.0,0.00027397,2]
[312406950,1705860640783,-500.0,0.00027397,2]
[312406951,1705860640793,-500.0,0.00027397,2]
[312406952,1705860640803,-2290.28,0.00027397,2]
[312406953,1705860640813,-500.0,0.00027397,2]
[312406954,1705860640821,-10000.0,0.00027397,10]
[312406955,1705860640830,-500.0,0.00027397,2]
[312406956,1705860640840,-500.0,0.00027397,2]
[312406957,1705860640848,-563.13250472,0.00027397,2]
[312406958,1705860640857,-500.0,0.00027397,2]
[312406960,1705860640868,-500.0,0.00027397,2]
[312406961,1705860640877,-500.0,0.00027397,2]
[312406963,1705860640886,-500.0,0.00027397,2]
[312406964,1705860640895,-500.0,0.00027397,2]
[312406965,1705860640904,-2237.54,0.00027397,2]
[312406966,1705860640913,-319.38769659,0.00027397,2]
[312406967,1705860640922,-1126.83,0.00027397,2]
[312406968,1705860640931,-500.0,0.00027397,2]
[312406969,1705860640940,-405.41592014,0.00027397,2]
[312406970,1705860640948,-785.10646174,0.000274,2]
[312406971,1705860640957,-7379.86363499,0.000275,2]
[312406972,1705860640966,-42074.72337016,0.000275,2]
[312406973,1705860640976,-201.07,0.000275,4]
[312406974,1705860640985,-500.0,0.00027671,2]
[312406975,1705860640993,-500.0,0.00027671,2]
[312406976,1705860641003,-500.0,0.00027671,2]
[312406977,1705860641012,-501.85237378,0.00027671,2]
[312406978,1705860641021,-500.0,0.00027671,2]
[312406979,1705860641030,-500.0,0.00027671,2]
[312406980,1705860641039,-500.0,0.00027671,2]
[312406981,1705860641049,-500.0,0.00027671,2]
[312406982,1705860641057,-500.0,0.00027671,2]
[312406983,1705860641067,-574.04952877,0.00027671,2]
[312406984,1705860641076,-500.0,0.00027671,2]
[312406985,1705860641085,-500.0,0.00027671,2]
[312406986,1705860641094,-768.77,0.00027671,2]
[312406987,1705860641103,-161.90922451,0.00027671,2]
[312406988,1705860641113,-500.0,0.00027671,2]
[312406989,1705860641122,-654.12,0.00027671,2]
[312406990,1705860641131,-500.0,0.00027671,2]
[312406991,1705860641139,-500.0,0.00027671,2]
[312406992,1705860641148,-500.0,0.00027671,2]
[312406993,1705860641157,-731.39,0.00027671,2]
[312406994,1705860641166,-500.0,0.00027671,2]
[312406995,1705860641175,-500.0,0.00027671,2]
[312406996,1705860641184,-500.0,0.00027671,2]
[312406997,1705860641193,-500.0,0.00027671,2]
[312406998,1705860641202,-500.0,0.00027671,2]
[312406999,1705860641211,-500.0,0.00027671,2]
[312407000,1705860641220,-745.98,0.00027671,2]
[312407001,1705860641230,-374.03606538,0.00027671,2]
[312407002,1705860641239,-500.0,0.00027671,2]
[312407003,1705860641248,-243.80797857,0.00027671,2]
[312407004,1705860641256,-500.0,0.00027671,2]
[312407005,1705860641265,-500.0,0.00027671,2]
[312407006,1705860641274,-500.0,0.00027671,2]
[312407007,1705860641285,-760.73,0.00027671,2]
[312407008,1705860641295,-500.0,0.00027671,2]
[312407009,1705860641304,-500.0,0.00027671,2]
[312407010,1705860641313,-500.0,0.00027671,2]
[312407011,1705860641322,-766.67,0.00027671,2]
[312407012,1705860641331,-500.0,0.00027671,2]
[312407013,1705860641340,-500.0,0.00027671,2]
[312407014,1705860641350,-500.0,0.00027671,2]
[312407015,1705860641359,-500.0,0.00027671,2]
[312407016,1705860641368,-500.0,0.00027671,2]
[312407017,1705860641378,-500.0,0.00027671,2]
[312407018,1705860641389,-500.0,0.00027671,2]
[312407019,1705860641399,-500.0,0.00027671,2]
[312407020,1705860641408,-500.0,0.00027671,2]
[312407021,1705860641417,-500.0,0.00027671,2]
[312407022,1705860641426,-500.0,0.00027671,2]
[312407023,1705860641435,-500.0,0.00027671,2]
[312407024,1705860641445,-1607.9,0.00027671,2]
[312407025,1705860641455,-500.0,0.00027671,2]
[312407026,1705860641466,-862.19,0.00027671,2]
[312407027,1705860641475,-500.0,0.00027671,2]
[312407028,1705860641485,-500.0,0.00027671,2]
[312407029,1705860641496,-2040.63,0.00027671,2]
[312407030,1705860641505,-500.0,0.00027671,2]
[312407031,1705860641515,-500.0,0.00027671,2]
[312407033,1705860641524,-500.0,0.00027671,2]
[312407034,1705860641534,-500.0,0.00027671,2]
[312407035,1705860641543,-500.0,0.00027671,2]
[312407036,1705860641552,-500.0,0.00027671,2]
[312407037,1705860641562,-500.0,0.00027671,2]
[312407038,1705860641570,-500.0,0.00027671,2]
[312407040,1705860641580,-500.0,0.00027671,2]
[312407041,1705860641589,-1000.0,0.00027671,2]
[312407043,1705860641599,-500.0,0.00027671,2]
[312407045,1705860641608,-1987.94,0.00027671,2]
[312407047,1705860641617,-630.05,0.00027671,2]
[312407048,1705860641626,-500.0,0.00027671,2]
[312407050,1705860641635,-512.58199465,0.00027671,2]
[312407052,1705860641645,-500.0,0.00027671,2]
[312407054,1705860641655,-500.0,0.00027671,2]
[312407055,1705860641664,-500.0,0.00027671,2]
[312407056,1705860641673,-526.31782774,0.00027671,2]
[312407058,1705860641682,-500.0,0.00027671,2]
[312407060,1705860641691,-500.0,0.00027671,2]
[312407061,1705860641700,-500.0,0.00027671,2]
[312407063,1705860641709,-500.0,0.00027671,2]
[312407064,1705860641719,-500.0,0.00027671,2]
[312407065,1705860641728,-96.01551017,0.00027671,2]
[312407066,1705860641746,-62.6329735,0.00027671,2]
[312407068,1705860641756,-1399.49,0.00027671,2]
[312407069,1705860641767,-841.32,0.00027671,2]
[312407070,1705860641776,-500.0,0.00027671,2]
[312407071,1705860641785,-610.97,0.00027671,2]
[312407072,1705860641795,-500.0,0.00027671,2]
[312407073,1705860641805,-500.0,0.00027671,2]
[312407074,1705860641816,-669.78,0.00027671,2]
[312407075,1705860641826,-500.0,0.00027671,2]
[312407076,1705860641835,-405.62644651,0.00027671,2]
[312407077,1705860641849,-262.93355349,0.00027671,2]
[312407078,1705860641859,-500.0,0.00027671,2]
[312407079,1705860641870,-2160.56,0.00027671,2]
[312407080,1705860641881,-1602.03,0.00027671,2]
[312407081,1705860641891,-676.46,0.00027671,2]
[312407082,1705860641901,-1237.17,0.00027671,2]
[312407083,1705860641910,-500.0,0.00027671,2]
[312407084,1705860641919,-500.0,0.00027671,2]
[312407085,1705860641928,-666.13,0.00027671,2]
[312407086,1705860641936,-334.34482967,0.00027671,2]
[312407087,1705860641946,-500.0,0.00027671,2]
[312407088,1705860641955,-500.0,0.00027671,2]
[312407089,1705860641965,-500.0,0.00027671,2]
[312407090,1705860642062,-4538.08,0.00027671,2]
[312407091,1705860642083,-500.0,0.00027671,2]
[312407092,1705860642093,-500.0,0.00027671,2]
[312407093,1705860642103,-741.24,0.00027671,2]
[312407094,1705860642113,-770.08612166,0.00027671,2]
[312407095,1705860642123,-528.38216131,0.00027671,2]
[312407096,1705860642132,-529.48,0.00027671,2]
[312407097,1705860642142,-20705.99,0.00027671,2]
[312407098,1705860642152,-1631.74,0.00027671,2]
[312407099,1705860642161,-747.07,0.00027671,2]
[312407100,1705860642170,-500.0,0.00027671,2]
[312407101,1705860642180,-500.0,0.00027671,2]
[312407102,1705860642189,-13009.93,0.00027671,2]
[312407103,1705860642198,-500.0,0.00027671,2]
[312407104,1705860642210,-500.0,0.00027671,2]
[312407105,1705860642219,-966.97,0.00027671,2]
[312407106,1705860642229,-500.0,0.00027671,2]
[312407107,1705860642238,-500.0,0.00027671,2]
[312407108,1705860642247,-513.4,0.00027671,2]
[312407109,1705860642256,-6533.57,0.00027671,2]
[312407110,1705860642265,-851.0,0.00027671,2]
[312407111,1705860642274,-861.55,0.00027671,2]
[312407112,1705860642283,-567.46,0.00027671,2]
[312407113,1705860642293,-500.0,0.00027671,2]
[312407114,1705860642302,-500.0,0.00027671,2]
[312407115,1705860642311,-1122.67,0.00027671,2]
[312407116,1705860642320,-1290.31,0.00027671,2]
[312407117,1705860642329,-4866.33,0.00027671,2]
[312407118,1705860642338,-1495.47,0.00027671,2]
[312407119,1705860642347,-1292.33,0.00027671,2]
[312407120,1705860642356,-6305.39,0.00027671,2]
[312407121,1705860642365,-1149.94,0.00027671,2]
[312407122,1705860642374,-5104.83063894,0.00027671,2]
[312407123,1705860642578,-3596.77070134,0.00027387,3]
[312407124,1705860642589,-312.20929866,0.00027387,3]
[312407125,1705860642598,-2132.67936106,0.00027671,2]
[312407126,1705860642608,-500.0,0.00027671,2]
[312407127,1705860642616,-500.0,0.00027671,2]
[312407128,1705860642625,-500.0,0.00027671,2]
[312407129,1705860642635,-162.85945084,0.00027671,2]
[312407130,1705860642646,-337.14054916,0.00027671,2]
[312407131,1705860642655,-2290.28,0.00027671,2]
[312407132,1705860642664,-500.0,0.00027671,2]
[312407133,1705860642674,-6134.31571473,0.00027671,10]
[312407134,1705860642683,-500.0,0.00027671,2]
[312407135,1705860642693,-500.0,0.00027671,2]
[312407136,1705860642702,-500.0,0.00027671,2]
[312407137,1705860642711,-500.0,0.00027671,2]
[312407138,1705860642720,-1581.55562555,0.00027671,2]
[312407260,1705860643771,-1200.6,0.00027397,2]
[312407261,1705860643782,-1333.61,0.00027397,2]
[312407262,1705860643791,-655.98437445,0.00027671,2]
[312407263,1705860643801,-149.32913362,0.00027671,2]
[312407264,1705860643813,-509.95758116,0.00027671,2]
[312407331,1705860646799,-154.75239617,0.0002767,4]
[312407334,1705860646809,-467.54328522,0.00027671,2]
[312407337,1705860646818,-500.0,0.00027671,2]
[312407340,1705860646827,-1200.6,0.00027671,2]
[312407344,1705860646837,-1333.61,0.00027671,2]
[312407347,1705860646846,-3000.0,0.000278,2]
[312407351,1705860646856,-1370.83887477,0.00027845,2]
[312407453,1705861831899,-154.75239617,0.00024997,4]
[312407455,1705861831908,-387.6062811,0.00025,2]
[312407457,1705861831917,-482.96197524,0.00025,2]
[312407459,1705861831926,-7534.54699119,0.00025281,2]
[312407461,1705861831937,-1302.90139904,0.00025281,2]
[312407463,1705861831948,-8470.37663032,0.00025281,2]
[312407466,1705861831959,-5013.76,0.00025281,2]
[312407568,1705861837984,-2578.41497945,0.00025281,2]
[312407570,1705861837994,-373.5241286,0.00025571,2]
[312407572,1705861838003,-3178.81,0.00026109,3]
[312407574,1705861838012,-5051.48,0.00026109,3]
[312407576,1705861838021,-4209.57,0.00026109,3]
[312407577,1705861838030,-50000.0,0.00026119,2]
[312407579,1705861838040,-620.10069705,0.00026654,2]
[312407581,1705861838049,-6061.78,0.00027287,3]
[312407584,1705861838058,-47279.55074567,0.00027297,2]
[312407587,1705861838067,-500.0,0.00027397,2]
[312407589,1705861838076,-500.0,0.00027397,2]
[312407591,1705861838085,-500.0,0.00027397,2]
[312407593,1705861838094,-500.0,0.00027397,2]
[312407595,1705861838103,-488.04280479,0.00027397,2]
[312407597,1705861838113,-745.59,0.00027397,2]
[312407599,1705861838122,-501.85237378,0.00027397,2]
[312407601,1705861838131,-374.03606538,0.00027397,2]
[312407603,1705861838141,-500.0,0.00027397,2]
[312407605,1705861838149,-500.0,0.00027397,2]
[312407607,1705861838159,-500.0,0.00027397,2]
[312407609,1705861838168,-500.0,0.00027397,2]
[312407611,1705861838177,-500.0,0.00027397,2]
[312407613,1705861838186,-500.0,0.00027397,2]
[312407615,1705861838196,-500.0,0.00027397,2]
[312407617,1705861838205,-500.0,0.00027397,2]
[312407619,1705861838214,-500.0,0.00027397,2]
[312407621,1705861838223,-500.0,0.00027397,2]
[312407623,1705861838232,-453.82432863,0.00027397,2]
[312407625,1705861838241,-500.0,0.00027397,2]
[312407627,1705861838250,-500.0,0.00027397,2]
[312407629,1705861838259,-500.0,0.00027397,2]
[312407631,1705861838272,-500.0,0.00027397,2]
[312407633,1705861838282,-500.0,0.00027397,2]
[312407635,1705861838291,-500.0,0.00027397,2]
[312407637,1705861838300,-500.0,0.00027397,2]
[312407639,1705861838309,-500.0,0.00027397,2]
[312407641,1705861838318,-500.0,0.00027397,2]
[312407643,1705861838327,-500.0,0.00027397,2]
[312407645,1705861838336,-862.19,0.00027397,2]
[312407648,1705861838347,-518.67,0.00027397,2]
[312407649,1705861838356,-596.3317369,0.00027397,2]
[312407651,1705861838367,-500.0,0.00027397,2]
[312407654,1705861838376,-500.0,0.00027397,2]
[312407656,1705861838386,-500.0,0.00027397,2]
[312407658,1705861838395,-500.0,0.00027397,2]
[312407659,1705861838405,-500.0,0.00027397,2]
[312407661,1705861838415,-500.0,0.00027397,2]
[312407663,1705861838425,-500.0,0.00027397,2]
[312407666,1705861838435,-500.0,0.00027397,2]
[312407668,1705861838444,-500.0,0.00027397,2]
[312407670,1705861838453,-500.0,0.00027397,2]
[312407672,1705861838464,-500.0,0.00027397,2]
[312407674,1705861838473,-500.0,0.00027397,2]
[312407676,1705861838482,-500.0,0.00027397,2]
[312407678,1705861838491,-500.0,0.00027397,2]
[312407679,1705861838501,-500.0,0.00027397,2]
[312407682,1705861838510,-815.05,0.00027397,2]
[312407683,1705861838520,-500.0,0.00027397,2]
[312407685,1705861838530,-500.0,0.00027397,2]
[312407687,1705861838539,-500.0,0.00027397,2]
[312407689,1705861838548,-806.26,0.00027397,2]
[312407691,1705861838557,-500.0,0.00027397,2]
[312407693,1705861838566,-500.0,0.00027397,2]
[312407695,1705861838575,-464.02860065,0.00027397,2]
[312407697,1705861838585,-500.0,0.00027397,2]
[312407699,1705861838594,-270.22224209,0.00027397,2]
[312407702,1705861838606,-500.0,0.00027397,2]
[312407704,1705861838618,-500.0,0.00027397,2]
[312407705,1705861838628,-500.0,0.00027397,2]
[312407708,1705861838638,-500.0,0.00027397,2]
[312407709,1705861838647,-1748.17,0.00027397,2]
[312407711,1705861838657,-814.73,0.00027397,2]
[312407713,1705861838667,-500.0,0.00027397,2]
[312407715,1705861838678,-500.0,0.00027397,2]
[312407717,1705861838687,-561.62,0.00027397,2]
[312407719,1705861838696,-155.0,0.00027397,2]
[312407721,1705861838705,-500.0,0.00027397,2]
[312407724,1705861838714,-500.0,0.00027397,2]
[312407725,1705861838724,-2231.42,0.00027397,2]
[312407728,1705861838734,-500.0,0.00027397,2]
[312407730,1705861838743,-500.0,0.00027397,2]
[312407732,1705861838753,-500.0,0.00027397,2]
[312407733,1705861838763,-638.37,0.00027397,2]
[312407735,1705861838772,-500.0,0.00027397,2]
[312407738,1705861838782,-500.0,0.00027397,2]
[312407740,1705861838792,-500.0,0.00027397,2]
[312407741,1705861838801,-500.0,0.00027397,2]
[312407744,1705861838811,-500.0,0.00027397,2]
[312407745,1705861838820,-500.0,0.00027397,2]
[312407748,1705861838829,-500.0,0.00027397,2]
[312407749,1705861838838,-500.0,0.00027397,2]
[312407752,1705861838848,-491.6713337,0.00027397,2]
[312407753,1705861838857,-503.89430269,0.00027397,2]
[312407755,1705861838866,-500.0,0.00027397,2]
[312407757,1705861838875,-635.96694651,0.00027397,2]
[312407760,1705861838885,-500.0,0.00027397,2]
[312407761,1705861838894,-500.0,0.00027397,2]
[312407764,1705861838904,-500.90581918,0.00027397,2]
[312407766,1705861838914,-192.19323195,0.00027397,2]
[312407768,1705861838923,-500.0,0.00027397,2]
[312407770,1705861838932,-500.0,0.00027397,2]
[312407772,1705861838941,-1000.0,0.00027397,2]
[312407774,1705861838951,-200.0,0.00027397,2]
[312407775,1705861838959,-500.0,0.00027397,2]
[312407777,1705861838968,-500.0,0.00027397,2]
[312407779,1705861838977,-303.51719072,0.00027397,2]
[312407781,1705861838986,-500.0,0.00027397,2]
[312407784,1705861838995,-630.05,0.00027397,2]
[312407786,1705861839004,-500.0,0.00027397,2]
[312407787,1705861839013,-1987.94,0.00027397,2]
[312407789,1705861839023,-500.0,0.00027397,2]
[312407791,1705861839033,-500.0,0.00027397,2]
[312407794,1705861839042,-500.0,0.00027397,2]
[312407796,1705861839051,-500.0,0.00027397,2]
[312407797,1705861839061,-500.0,0.00027397,2]
[312407799,1705861839070,-500.0,0.00027397,2]
[312407801,1705861839079,-500.0,0.00027397,2]
[312407803,1705861839088,-500.0,0.00027397,2]
[312407805,1705861839097,-500.0,0.00027397,2]
[312407807,1705861839107,-500.0,0.00027397,2]
[312407810,1705861839116,-500.0,0.00027397,2]
[312407812,1705861839125,-2144.31,0.00027397,2]
[312407814,1705861839134,-1111.22,0.00027397,2]
[312407816,1705861839143,-500.0,0.00027397,2]
[312407818,1705861839152,-563.13250472,0.00027397,2]
[312407820,1705861839161,-500.0,0.00027397,2]
[312407822,1705861839171,-500.0,0.00027397,2]
[312407824,1705861839181,-500.0,0.00027397,2]
[312407826,1705861839190,-500.0,0.00027397,2]
[312407828,1705861839199,-500.0,0.00027397,2]
[312407830,1705861839208,-661.54,0.00027397,2]
[312407832,1705861839217,-500.0,0.00027397,2]
[312407834,1705861839226,-500.0,0.00027397,2]
[312407836,1705861839235,-585.51,0.00027397,2]
[312407838,1705861839244,-500.0,0.00027397,2]
[312407839,1705861839252,-500.0,0.00027397,2]
[312407841,1705861839262,-669.1,0.00027397,2]
[312407843,1705861839273,-2091.37,0.00027397,2]
[312407845,1705861839284,-500.0,0.00027397,2]
[312407847,1705861839292,-500.0,0.00027397,2]
[312407849,1705861839301,-500.0,0.00027397,2]
[312407851,1705861839310,-500.0,0.00027397,2]
[312407853,1705861839319,-500.0,0.00027397,2]
[312407855,1705861839328,-500.0,0.00027397,2]
[312407858,1705861839337,-641.87,0.00027397,2]
[312407860,1705861839347,-4369.83,0.00027397,2]
[312407861,1705861839356,-1000.0,0.00027397,2]
[312407863,1705861839366,-1152.1,0.00027397,2]
[312407865,1705861839375,-635.09409902,0.00027397,2]
[312407867,1705861839384,-500.0,0.00027397,2]
[312407869,1705861839393,-19904.58,0.00027397,2]
[312407871,1705861839402,-500.0,0.00027397,2]
[312407873,1705861839410,-500.0,0.00027397,2]
[312407875,1705861839419,-500.0,0.00027397,2]
[312407877,1705861839428,-1584.58,0.00027397,2]
[312407879,1705861839437,-1555.96,0.00027397,2]
[312407881,1705861839446,-500.0,0.00027397,2]
[312407883,1705861839456,-500.17407216,0.00027397,2]
[312407885,1705861839464,-500.0,0.00027397,2]
[312407887,1705861839473,-500.0,0.00027397,2]
[312407889,1705861839482,-500.0,0.00027397,2]
[312407891,1705861839492,-500.0,0.00027397,2]
[312407893,1705861839501,-853.01,0.00027397,2]
[312407895,1705861839509,-500.0,0.00027397,2]
[312407897,1705861839519,-500.0,0.00027397,2]
[312407899,1705861839527,-710.35,0.00027397,2]
[312407901,1705861839537,-500.0,0.00027397,2]
[312407903,1705861839545,-500.0,0.00027397,2]
[312407905,1705861839554,-500.0,0.00027397,2]
[312407907,1705861839563,-500.0,0.00027397,2]
[312407909,1705861839572,-12492.14,0.00027397,2]
[312407911,1705861839581,-963.84,0.00027397,2]
[312407913,1705861839590,-507.42,0.00027397,2]
[312407915,1705861839599,-200.80876799,0.00027397,2]
[312407917,1705861839608,-715.94,0.00027397,2]
[312407919,1705861839617,-731.48,0.00027397,2]
[312407921,1705861839626,-1308.42,0.00027397,2]
[312407923,1705861839635,-815.55,0.00027397,2]
[312407925,1705861839644,-234.44431672,0.00027397,2]
[312407927,1705861839653,-500.0,0.00027397,2]
[312407929,1705861839662,-500.0,0.00027397,2]
[312407931,1705861839670,-500.0,0.00027397,2]
[312407933,1705861839679,-500.0,0.00027397,2]
[312407935,1705861839688,-500.0,0.00027397,2]
[312407937,1705861839697,-500.0,0.00027397,2]
[312407939,1705861839706,-1110.29,0.00027397,2]
[312407941,1705861839715,-558.29816808,0.00027397,2]
[312407943,1705861839724,-6523.8,0.00027397,2]
[312407945,1705861839733,-500.0,0.00027397,2]
[312407947,1705861839742,-500.0,0.00027397,2]
[312407949,1705861839751,-564.65,0.00027397,2]
[312407951,1705861839761,-854.78,0.00027397,2]
[312407953,1705861839770,-4848.42,0.00027397,2]
[312407955,1705861839779,-500.0,0.00027397,2]
[312407957,1705861839788,-792.29,0.00027397,2]
[312407959,1705861839797,-500.0,0.00027397,2]
[312407961,1705861839806,-500.0,0.00027397,2]
[312407964,1705861839816,-1517.06,0.00027397,2]
[312407965,1705861839825,-6063.5,0.00027397,2]
[312407967,1705861839834,-163.8931268,0.00027397,2]
[312407969,1705861839843,-500.0,0.00027397,2]
[312407971,1705861839852,-239.29179191,0.00027397,2]
[312407974,1705861839862,-1236.55,0.00027397,2]
[312407975,1705861839871,-500.0,0.00027397,2]
[312407977,1705861839880,-1248.62,0.00027397,2]
[312407980,1705861839890,-10000.0,0.00027397,10]
[312407981,1705861839899,-500.0,0.00027397,2]
[312407983,1705861839908,-500.0,0.00027397,2]
[312407986,1705861839918,-425.81095081,0.00027397,2]
[312407987,1705861839927,-1291.03,0.00027397,2]
[312407989,1705861839936,-7490.71,0.00027397,2]
[312407991,1705861839945,-500.0,0.00027397,2]
[312407993,1705861839954,-500.0,0.00027397,2]
[312407996,1705861839964,-500.0,0.00027397,2]
[312407999,1705861839973,-500.0,0.00027397,2]
[312408002,1705861839982,-500.0,0.00027397,2]
[312408004,1705861839993,-500.0,0.00027397,2]
[312408006,1705861840002,-2215.68,0.00027397,2]
[312408008,1705861840012,-500.0,0.00027397,2]
[312408010,1705861840021,-500.0,0.00027397,2]
[312408012,1705861840031,-500.0,0.00027397,2]
[312408014,1705861840041,-405.41592014,0.00027397,2]
[312408017,1705861840050,-1500.0,0.000274,2]
[312408018,1705861840059,-204.82177511,0.00027439,2]
[312408020,1705861840068,-7379.86363499,0.000275,2]
[312408023,1705861840079,-200.0,0.000275,4]
[312408025,1705861840088,-500.0,0.00027671,2]
[312408026,1705861840098,-500.0,0.00027671,2]
[312408041,1705861840222,-503.44840265,0.00027671,2]